{"text_format":"1","workbook":"xlsx","n_sheets":11,"sheets":["Accueil","Opérations","Regroupements","Comptes","Classes","Catégories","Comptes bancaires","Synthèses opérations","Prévisionnel","Synthèses prévisionnel","Paramètres"],"not_rendered":{"charts":2,"images":6,"macros":1,"external_links":0,"defined_names":37,"comments":0,"pivot_tables":10},"unopened":[],"bounds":{"document_bytes":16777216,"sheet_cells":100000,"rows_first":2000,"rows_last":500,"rows_between":2000,"halvings":0,"cell_chars":16384,"cell_head_chars":4096},"cells_cut":0,"cells_raw":0,"read":"whole","date_system":"1900"}

{"sheet":"Accueil","index":0,"n_rows":1,"n_cols":2,"rows_kept":1,"cut":false,"hidden":false,"merged":[]}
[null,{"$f":"\"Comptabilité \"&\" \"&Titre&\" \"&AnnéeRéf","v":"Comptabilité  Association Mon Assoce "}]

{"sheet":"Opérations","index":1,"n_rows":5,"n_cols":16,"rows_kept":5,"cut":false,"hidden":false,"merged":[]}
[{"$f":"Titre&\" \"&AnnéeRéf&\" - Opérations comptables\"","v":"Association Mon Assoce  - Opérations comptables"},null,null,null,null,{"$f":"SUBTOTAL(3,B3:B5)-1","v":2},null,{"$f":"SUBTOTAL(9,H3:H5)","v":2350}]
[]
["Date","Objet","Compte bancaire","Compte","Regroupement","Tiers","Montant saisi","Montant","Mode","Année Bilan Financier","Année Bilan Activité","Année Compte Exploitation","Observations","Classe de compte","Catégorie de regroupement","Sens"]
["2015-06-14","Adhésions","1 - Compte Chèque","730 - Adhésions","Adhésions","Compte chèque",350,{"$f":"IF(ISNUMBER(G4*P4),G4*P4,\"Classe incorrecte\")","v":350},"Espèces",2015,"2015",2015,null,{"$f":"IF(ISTEXT(VLOOKUP(D4,Comptes,5,FALSE)),VLOOKUP(D4,Comptes,5,FALSE),\"\")","v":"7 - Comptes de produits"},{"$f":"IF(ISTEXT(VLOOKUP(E4,Regroupements,5,FALSE)),VLOOKUP(E4,Regroupements,5,FALSE),\"\")","v":"Autres opérations"},{"$f":"IF(ISNUMBER(VLOOKUP(N4,Classes,2,FALSE)),VLOOKUP(N4,Classes,2,FALSE),\"\")","v":1}]
["2015-03-01","Subvention de la ville","1 - Compte Chèque","740 - Subvention de  fonctionnement, reversement % charges","Subventions","Compte chèque",2000,{"$f":"IF(ISNUMBER(G5*P5),G5*P5,\"Classe incorrecte\")","v":2000},"Virement",2015,"2015",2015,"Ecriture supprimée (20 490.93 €),  montant transféré dans le solde initial du compte épargne",{"$f":"IF(ISTEXT(VLOOKUP(D5,Comptes,5,FALSE)),VLOOKUP(D5,Comptes,5,FALSE),\"\")","v":"7 - Comptes de produits"},{"$f":"IF(ISTEXT(VLOOKUP(E5,Regroupements,5,FALSE)),VLOOKUP(E5,Regroupements,5,FALSE),\"\")","v":"Subventions"},{"$f":"IF(ISNUMBER(VLOOKUP(N5,Classes,2,FALSE)),VLOOKUP(N5,Classes,2,FALSE),\"\")","v":1}]

{"sheet":"Regroupements","index":2,"n_rows":6,"n_cols":6,"rows_kept":6,"cut":false,"hidden":false,"merged":[]}
[{"$f":"Titre&\" \"&AnnéeRéf&\"\nRegroupements\"","v":"Association Mon Assoce \nRegroupements"},{"$f":"SUBTOTAL(9,B3:B23)","v":2350},{"$f":"SUBTOTAL(9,C3:C23)","v":0},{"$f":"SUBTOTAL(9,D3:D23)","v":2350},{"$f":"SUBTOTAL(3,A3:A7)-1","v":3}]
[]
["Libellé","Recettes","Dépenses","Solde","Catégorie","Observations"]
["...",{"$f":"SUMIFS(Opérations!H:H,Opérations!E:E,A:A,Opérations!P:P,1)","v":0},{"$f":"SUMIFS(Opérations!H:H,Opérations!E:E,A:A,Opérations!P:P,-1)","v":0},{"$f":"B4+C4","v":0},"..."]
["Adhésions",{"$f":"SUMIFS(Opérations!H:H,Opérations!E:E,A:A,Opérations!P:P,1)","v":350},{"$f":"SUMIFS(Opérations!H:H,Opérations!E:E,A:A,Opérations!P:P,-1)","v":0},{"$f":"B5+C5","v":350},"Autres opérations"]
["Subventions",{"$f":"SUMIFS(Opérations!H:H,Opérations!E:E,A:A,Opérations!P:P,1)","v":2000},{"$f":"SUMIFS(Opérations!H:H,Opérations!E:E,A:A,Opérations!P:P,-1)","v":0},2000,"Subventions"]

{"sheet":"Comptes","index":3,"n_rows":24,"n_cols":7,"rows_kept":24,"cut":false,"hidden":false,"merged":[]}
[{"$f":"Titre&\" \"&AnnéeRéf&\"\nComptes\"","v":"Association Mon Assoce \nComptes"},{"$f":"SUBTOTAL(9,B3:B41)","v":2350},{"$f":"SUBTOTAL(9,C3:C41)","v":0},{"$f":"SUBTOTAL(9,D3:D41)","v":2350},{"$f":"SUBTOTAL(3,A3:A25)-1","v":21}]
[]
["Libellé","Recettes","Dépenses","Solde","Classe","Observations","Sens"]
["600 - Frais d'administration",{"$f":"SUMIFS(Opérations!H:H,Opérations!D:D,A:A,Opérations!P:P,1)","v":0},{"$f":"SUMIFS(Opérations!H:H,Opérations!D:D,A:A,Opérations!P:P,-1)","v":0},{"$f":"B4+C4","v":0},"6 - Comptes de charges",null,{"$f":"VLOOKUP(E4,Classes,2,FALSE)","v":-1}]
["605 - Frais d'assurances",{"$f":"SUMIFS(Opérations!H:H,Opérations!D:D,A:A,Opérations!P:P,1)","v":0},{"$f":"SUMIFS(Opérations!H:H,Opérations!D:D,A:A,Opérations!P:P,-1)","v":0},0,"6 - Comptes de charges",null,-1]
["606 - Frais de communication",{"$f":"SUMIFS(Opérations!H:H,Opérations!D:D,A:A,Opérations!P:P,1)","v":0},{"$f":"SUMIFS(Opérations!H:H,Opérations!D:D,A:A,Opérations!P:P,-1)","v":0},0,"6 - Comptes de charges",null,-1]
["607 - Frais de location",{"$f":"SUMIFS(Opérations!H:H,Opérations!D:D,A:A,Opérations!P:P,1)","v":0},{"$f":"SUMIFS(Opérations!H:H,Opérations!D:D,A:A,Opérations!P:P,-1)","v":0},0,"6 - Comptes de charges",null,-1]
["610 - Prestations de service",{"$f":"SUMIFS(Opérations!H:H,Opérations!D:D,A:A,Opérations!P:P,1)","v":0},{"$f":"SUMIFS(Opérations!H:H,Opérations!D:D,A:A,Opérations!P:P,-1)","v":0},0,"6 - Comptes de charges",null,-1]
["620 - Dépenses de fonctionnement (Affranchissement,internet)",{"$f":"SUMIFS(Opérations!H:H,Opérations!D:D,A:A,Opérations!P:P,1)","v":0},{"$f":"SUMIFS(Opérations!H:H,Opérations!D:D,A:A,Opérations!P:P,-1)","v":0},0,"6 - Comptes de charges",null,-1]
["630 - GUSO caisse intermittents",{"$f":"SUMIFS(Opérations!H:H,Opérations!D:D,A:A,Opérations!P:P,1)","v":0},{"$f":"SUMIFS(Opérations!H:H,Opérations!D:D,A:A,Opérations!P:P,-1)","v":0},0,"6 - Comptes de charges",null,-1]
["640 - Impôts et taxes Sacem et CNV",{"$f":"SUMIFS(Opérations!H:H,Opérations!D:D,A:A,Opérations!P:P,1)","v":0},{"$f":"SUMIFS(Opérations!H:H,Opérations!D:D,A:A,Opérations!P:P,-1)","v":0},0,"6 - Comptes de charges",null,-1]
["650 - Hébergements",{"$f":"SUMIFS(Opérations!H:H,Opérations!D:D,A:A,Opérations!P:P,1)","v":0},{"$f":"SUMIFS(Opérations!H:H,Opérations!D:D,A:A,Opérations!P:P,-1)","v":0},0,"6 - Comptes de charges",null,-1]
["660 - Restauration, catering",{"$f":"SUMIFS(Opérations!H:H,Opérations!D:D,A:A,Opérations!P:P,1)","v":0},{"$f":"SUMIFS(Opérations!H:H,Opérations!D:D,A:A,Opérations!P:P,-1)","v":0},0,"6 - Comptes de charges",null,-1]
["670 - Cachets",{"$f":"SUMIFS(Opérations!H:H,Opérations!D:D,A:A,Opérations!P:P,1)","v":0},{"$f":"SUMIFS(Opérations!H:H,Opérations!D:D,A:A,Opérations!P:P,-1)","v":0},0,"6 - Comptes de charges",null,-1]
["680 - Missions, réceptions",{"$f":"SUMIFS(Opérations!H:H,Opérations!D:D,A:A,Opérations!P:P,1)","v":0},{"$f":"SUMIFS(Opérations!H:H,Opérations!D:D,A:A,Opérations!P:P,-1)","v":0},0,"6 - Comptes de charges",null,-1]
["690 - Mouvements d'ordre Dépenses",{"$f":"SUMIFS(Opérations!H:H,Opérations!D:D,A:A,Opérations!P:P,1)","v":0},{"$f":"SUMIFS(Opérations!H:H,Opérations!D:D,A:A,Opérations!P:P,-1)","v":0},0,"6 - Comptes de charges",null,-1]
["691 - Sortie fonds de caisse",{"$f":"SUMIFS(Opérations!H:H,Opérations!D:D,A:A,Opérations!P:P,1)","v":0},{"$f":"SUMIFS(Opérations!H:H,Opérations!D:D,A:A,Opérations!P:P,-1)","v":0},0,"6 - Comptes de charges",null,-1]
["720 - Recettes billetterie, inscriptions",{"$f":"SUMIFS(Opérations!H:H,Opérations!D:D,A:A,Opérations!P:P,1)","v":0},{"$f":"SUMIFS(Opérations!H:H,Opérations!D:D,A:A,Opérations!P:P,-1)","v":0},0,"7 - Comptes de produits",null,1]
["730 - Adhésions",{"$f":"SUMIFS(Opérations!H:H,Opérations!D:D,A:A,Opérations!P:P,1)","v":350},{"$f":"SUMIFS(Opérations!H:H,Opérations!D:D,A:A,Opérations!P:P,-1)","v":0},350,"7 - Comptes de produits",null,1]
["740 - Subvention de  fonctionnement, reversement % charges",{"$f":"SUMIFS(Opérations!H:H,Opérations!D:D,A:A,Opérations!P:P,1)","v":2000},{"$f":"SUMIFS(Opérations!H:H,Opérations!D:D,A:A,Opérations!P:P,-1)","v":0},2000,"7 - Comptes de produits",null,1]
["790 - Mouvements d'ordres Recettes",{"$f":"SUMIFS(Opérations!H:H,Opérations!D:D,A:A,Opérations!P:P,1)","v":0},{"$f":"SUMIFS(Opérations!H:H,Opérations!D:D,A:A,Opérations!P:P,-1)","v":0},0,"7 - Comptes de produits",null,1]
["791 - Entrée fonds de caisse",{"$f":"SUMIFS(Opérations!H:H,Opérations!D:D,A:A,Opérations!P:P,1)","v":0},{"$f":"SUMIFS(Opérations!H:H,Opérations!D:D,A:A,Opérations!P:P,-1)","v":0},0,"7 - Comptes de produits",null,1]
["792 - Report année précédente",{"$f":"SUMIFS(Opérations!H:H,Opérations!D:D,A:A,Opérations!P:P,1)","v":0},{"$f":"SUMIFS(Opérations!H:H,Opérations!D:D,A:A,Opérations!P:P,-1)","v":0},0,"7 - Comptes de produits",null,1]
["793 - Intérêts de l'année",{"$f":"SUMIFS(Opérations!H:H,Opérations!D:D,A:A,Opérations!P:P,1)","v":0},{"$f":"SUMIFS(Opérations!H:H,Opérations!D:D,A:A,Opérations!P:P,-1)","v":0},0,"7 - Comptes de produits",null,1]

{"sheet":"Classes","index":4,"n_rows":11,"n_cols":7,"rows_kept":11,"cut":false,"hidden":false,"merged":[]}
[{"$f":"Titre&\" \"&AnnéeRéf&\"\nClasses de Comptes\"","v":"Association Mon Assoce \nClasses de Comptes"},null,{"$f":"SUBTOTAL(9,C3:C28)","v":2350},{"$f":"SUBTOTAL(9,D3:D28)","v":0},{"$f":"SUBTOTAL(9,E3:E28)","v":2350},{"$f":"SUBTOTAL(3,A3:A12)-1","v":8}]
[]
["Libellé","Sens","Recettes","Dépenses","Solde","Observations","Nb_Comptes"]
["1 - Comptes de capitaux",0,{"$f":"SUMIFS(Opérations!H:H,Opérations!N:N,A:A,Opérations!P:P,1)","v":0},{"$f":"SUMIFS(Opérations!H:H,Opérations!N:N,A:A,Opérations!P:P,-1)","v":0},{"$f":"C4+D4","v":0},null,{"$f":"COUNTIF(Comptes!E:E,Classes!A:A)","v":0}]
["2 - Comptes d'immobilisation",0,{"$f":"SUMIFS(Opérations!H:H,Opérations!N:N,A:A,Opérations!P:P,1)","v":0},{"$f":"SUMIFS(Opérations!H:H,Opérations!N:N,A:A,Opérations!P:P,-1)","v":0},0,null,{"$f":"COUNTIF(Comptes!E:E,Classes!A:A)","v":0}]
["3 - Comptes de stocks et en-cours",0,{"$f":"SUMIFS(Opérations!H:H,Opérations!N:N,A:A,Opérations!P:P,1)","v":0},{"$f":"SUMIFS(Opérations!H:H,Opérations!N:N,A:A,Opérations!P:P,-1)","v":0},0,null,{"$f":"COUNTIF(Comptes!E:E,Classes!A:A)","v":0}]
["4 - Compte de tiers",0,{"$f":"SUMIFS(Opérations!H:H,Opérations!N:N,A:A,Opérations!P:P,1)","v":0},{"$f":"SUMIFS(Opérations!H:H,Opérations!N:N,A:A,Opérations!P:P,-1)","v":0},0,null,{"$f":"COUNTIF(Comptes!E:E,Classes!A:A)","v":0}]
["5 - Comptes financiers",0,{"$f":"SUMIFS(Opérations!H:H,Opérations!N:N,A:A,Opérations!P:P,1)","v":0},{"$f":"SUMIFS(Opérations!H:H,Opérations!N:N,A:A,Opérations!P:P,-1)","v":0},0,null,{"$f":"COUNTIF(Comptes!E:E,Classes!A:A)","v":0}]
["6 - Comptes de charges",-1,{"$f":"SUMIFS(Opérations!H:H,Opérations!N:N,A:A,Opérations!P:P,1)","v":0},{"$f":"SUMIFS(Opérations!H:H,Opérations!N:N,A:A,Opérations!P:P,-1)","v":0},0,null,{"$f":"COUNTIF(Comptes!E:E,Classes!A:A)","v":14}]
["7 - Comptes de produits",1,{"$f":"SUMIFS(Opérations!H:H,Opérations!N:N,A:A,Opérations!P:P,1)","v":2350},{"$f":"SUMIFS(Opérations!H:H,Opérations!N:N,A:A,Opérations!P:P,-1)","v":0},2350,null,{"$f":"COUNTIF(Comptes!E:E,Classes!A:A)","v":7}]
["8 - Traitement des contributions volontaires en nature",0,{"$f":"SUMIFS(Opérations!H:H,Opérations!N:N,A:A,Opérations!P:P,1)","v":0},{"$f":"SUMIFS(Opérations!H:H,Opérations!N:N,A:A,Opérations!P:P,-1)","v":0},0,null,{"$f":"COUNTIF(Comptes!E:E,Classes!A:A)","v":0}]

{"sheet":"Catégories","index":5,"n_rows":6,"n_cols":6,"rows_kept":6,"cut":false,"hidden":false,"merged":[]}
[{"$f":"Titre&\" \"&AnnéeRéf&\"\nCatégories de regroupements\"","v":"Association Mon Assoce \nCatégories de regroupements"},{"$f":"SUBTOTAL(9,B3:B23)","v":2350},{"$f":"SUBTOTAL(9,C3:C23)","v":0},{"$f":"SUBTOTAL(9,D3:D23)","v":2350},{"$f":"SUBTOTAL(3,A3:A7)-1","v":3}]
[]
["Libellé","Recettes","Dépenses","Solde","Observations","Nb_Regroupements"]
["...",{"$f":"SUMIFS(Opérations!H:H,Opérations!O:O,A:A,Opérations!P:P,1)","v":0},{"$f":"SUMIFS(Opérations!H:H,Opérations!O:O,A:A,Opérations!P:P,-1)","v":0},{"$f":"B4+C4","v":0},null,{"$f":"COUNTIF(Regroupements!E:E,Catégories!A:A)","v":1}]
["Autres opérations",{"$f":"SUMIFS(Opérations!H:H,Opérations!O:O,A:A,Opérations!P:P,1)","v":350},{"$f":"SUMIFS(Opérations!H:H,Opérations!O:O,A:A,Opérations!P:P,-1)","v":0},{"$f":"B5+C5","v":350},null,{"$f":"COUNTIF(Regroupements!E:E,Catégories!A:A)","v":1}]
["Subventions",{"$f":"SUMIFS(Opérations!H:H,Opérations!O:O,A:A,Opérations!P:P,1)","v":2000},{"$f":"SUMIFS(Opérations!H:H,Opérations!O:O,A:A,Opérations!P:P,-1)","v":0},{"$f":"B6+C6","v":2000},null,{"$f":"COUNTIF(Regroupements!E:E,Catégories!A:A)","v":1}]

{"sheet":"Comptes bancaires","index":6,"n_rows":5,"n_cols":7,"rows_kept":5,"cut":false,"hidden":false,"merged":[]}
[{"$f":"Titre&\" \"&AnnéeRéf&\"\nComptes bancaires\"","v":"Association Mon Assoce \nComptes bancaires"},{"$f":"SUBTOTAL(9,B3:B22)","v":3000},{"$f":"SUBTOTAL(9,C3:C22)","v":2350},{"$f":"SUBTOTAL(9,D3:D22)","v":0},{"$f":"SUBTOTAL(9,E3:E22)","v":5350},{"$f":"SUBTOTAL(3,Liste_Comptes_Bancaires)-1","v":1}]
[]
["Libellé","Solde initial","Recettes","Dépenses","Solde","Observations","Nb_Regroupements"]
["1 - Compte Chèque",1000,{"$f":"SUMIFS(Opérations!H:H,Opérations!C:C,A:A,Opérations!P:P,1)","v":2350},{"$f":"SUMIFS(Opérations!H:H,Opérations!C:C,A:A,Opérations!P:P,-1)","v":0},{"$f":"B4+C4+D4","v":3350},null,{"$f":"COUNTIF(Regroupements!E:E,'Comptes bancaires'!A:A)","v":0}]
["2 - Compte Epargne",2000,{"$f":"SUMIFS(Opérations!H:H,Opérations!C:C,A:A,Opérations!P:P,1)","v":0},{"$f":"SUMIFS(Opérations!H:H,Opérations!C:C,A:A,Opérations!P:P,-1)","v":0},{"$f":"B5+C5+D5","v":2000},null,{"$f":"COUNTIF(Regroupements!E:E,'Comptes bancaires'!A:A)","v":0}]

{"sheet":"Synthèses opérations","index":7,"n_rows":372,"n_cols":15,"rows_kept":372,"cut":false,"hidden":false,"merged":[[0,0,0,3],[362,0,362,3],[137,0,137,3],[36,0,36,3],[89,0,89,3],[244,0,244,3],[183,0,183,3],[284,0,284,3]]}
["Compte d'exploitation par Regroupement"]
["Année Compte Exploitation","(Tous)"]
["Compte bancaire","1 - Compte Chèque"]
[]
["Montants",null,"Sens"]
["Catégorie de regroupement","Regroupement",1,"Total général"]
["Autres opérations","Adhésions",350,350]
["Subventions","Subventions",2000,2000]
["Total général",null,2350,2350]
[]
[]
[null,null,null,null,null,null,null,null,null,null,null,null,"Compte d'exploitation","Dépenses","Recettes"]
[null,null,null,null,null,null,null,null,null,null,null,null,"Document Alain",-26983.82,26094.3]
[null,null,null,null,null,null,null,null,null,null,null,null,"Classeur Comptabilité",{"$f":"GETPIVOTDATA(\"Montant\",$A$5,\"Sens\",-1)","v":{"$error":"#REF!"}},{"$f":"GETPIVOTDATA(\"Montant\",$A$5,\"Sens\",1)","v":2350}]
[null,null,null,null,null,null,null,null,null,null,null,null,"Ecart",{"$f":"N13-N14","v":{"$error":"#REF!"}},{"$f":"O13-O14","v":23744.3}]
[]
[]
[]
[]
[]
[]
[]
[]
[]
[]
[]
[]
[]
[]
[]
[]
[]
[]
[]
[]
[]
["Compte d'exploitation par Compte"]
["Année Compte Exploitation","(Tous)"]
["Compte bancaire","1 - Compte Chèque"]
[]
["Montants",null,"Sens"]
["Classe de compte","Compte",1,"Total général"]
["7 - Comptes de produits","730 - Adhésions",350,350]
[null,"740 - Subvention de  fonctionnement, reversement % charges",2000,2000]
["Total général",null,2350,2350]
[]
[]
[]
[]
[]
[]
[]
[]
[]
[]
[]
[]
[]
[]
[]
[]
[]
[]
[]
[]
[]
[]
[]
[]
[]
[]
[]
[]
[]
[]
[]
[]
[]
[]
[]
[]
[]
[]
[]
[]
[]
[]
[]
[]
["Bilan financier par Regroupement"]
["Année Bilan Financier","(Tous)"]
["Compte bancaire","1 - Compte Chèque"]
[]
["Montants",null,"Sens"]
["Catégorie de regroupement","Regroupement",1,"Total général"]
["Autres opérations","Adhésions",350,350]
["Subventions","Subventions",2000,2000]
["Total général",null,2350,2350]
[]
[]
[null,null,null,null,null,null,null,null,null,null,null,null,"Bilan financier","Dépenses","Recettes"]
[null,null,null,null,null,null,null,null,null,null,null,null,"Document Alain",-27608.82,31913.39]
[null,null,null,null,null,null,null,null,null,null,null,null,"Classeur Comptabilité",{"$f":"GETPIVOTDATA(\"Montant\",$A$94,\"Sens\",-1)","v":{"$error":"#REF!"}},{"$f":"GETPIVOTDATA(\"Montant\",$A$94,\"Sens\",1)","v":2350}]
[null,null,null,null,null,null,null,null,null,null,null,null,"Ecart",{"$f":"N102-N103","v":{"$error":"#REF!"}},{"$f":"O102-O103","v":29563.39}]
[null,null,null,null,null,null,null,null,null,null,null,null,"Cpte Epargne",-4000,20616.72]
[null,null,null,null,null,null,null,null,null,null,null,null,"total",{"$f":"SUM(N103:N105)","v":{"$error":"#REF!"}},{"$f":"SUM(O103:O105)","v":52530.11}]
[]
[]
[]
[]
[]
[]
[]
[]
[]
[]
[]
[]
[]
[]
[]
[]
[]
[]
[]
[]
[]
[]
[]
[]
[]
[]
[]
[]
[]
[]
[]
["Bilan financier par Compte"]
["Année Bilan Financier","(Tous)"]
["Compte bancaire","1 - Compte Chèque"]
[]
["Montants",null,"Sens"]
["Classe de compte","Compte",1,"Total général"]
["7 - Comptes de produits","730 - Adhésions",350,350]
[null,"740 - Subvention de  fonctionnement, reversement % charges",2000,2000]
["Total général",null,2350,2350]
[]
[]
[]
[]
[]
[]
[]
[]
[]
[]
[]
[]
[]
[]
[]
[]
[]
[]
[]
[]
[]
[]
[]
[]
[]
[]
[]
[]
[]
[]
[]
[]
[]
[]
[]
[]
[]
["Bilan d'activité par Regroupement"]
["Année Bilan Activité","(Tous)"]
["Compte bancaire","1 - Compte Chèque"]
[]
["Montants",null,"Sens"]
["Catégorie de regroupement","Regroupement",1,"Total général",null,null,null,null,null,null,null,null,"Bilan financier","Dépenses","Recettes"]
["Autres opérations","Adhésions",350,350,null,null,null,null,null,null,null,null,"Document Alain",-26393.14,16149.44]
["Subventions","Subventions",2000,2000,null,null,null,null,null,null,null,null,"Classeur Comptabilité",{"$f":"GETPIVOTDATA(\"Montant\",$A$188,\"Sens\",-1)","v":{"$error":"#REF!"}},{"$f":"GETPIVOTDATA(\"Montant\",$A$188,\"Sens\",1)","v":2350}]
["Total général",null,2350,2350,null,null,null,null,null,null,null,null,"Ecart",{"$f":"N190-N191","v":{"$error":"#REF!"}},{"$f":"O190-O191","v":13799.44}]
[]
[]
[]
[]
[]
[]
[]
[]
[]
[]
[]
[]
[]
[]
[]
[]
[]
[]
[]
[]
[]
[]
[]
[]
[]
[]
[]
[]
[]
[]
[]
[]
[]
[]
[]
[]
[]
[]
[]
[]
[]
[]
[]
[]
[]
[]
[]
[]
[]
[]
[]
[]
["Bilan d'activité par Compte"]
["Année Bilan Activité","(Tous)"]
["Compte bancaire","1 - Compte Chèque"]
[]
["Montants",null,"Sens"]
["Classe de compte","Compte",1,"Total général"]
["7 - Comptes de produits","730 - Adhésions",350,350]
[null,"740 - Subvention de  fonctionnement, reversement % charges",2000,2000]
["Total général",null,2350,2350]
[]
[]
[]
[]
[]
[]
[]
[]
[]
[]
[]
[]
[]
[]
[]
[]
[]
[]
[]
[]
[]
[]
[]
[]
[]
[]
[]
[]
[]
[]
[]
["Structure du coût d'un concert"]
["Année Bilan Activité","(Tous)"]
["Compte bancaire","1 - Compte Chèque"]
["Regroupement","(Tous)"]
[]
["Montants",null,"Sens"]
["Classe de compte","Compte","Total général"]
["Total général"]
[]
[]
[]
[]
[]
[]
[]
[]
[]
[]
[]
[]
[]
[]
[]
[]
[]
[]
[]
[]
[]
[]
[]
[]
[]
[]
[]
[]
[]
[]
[]
[]
[]
[]
[]
[]
[]
[]
[]
[]
[]
[]
[]
[]
[]
[]
[]
[]
[]
[]
[]
[]
[]
[]
[]
[]
[]
[]
[]
[]
[]
[]
[]
[]
[]
[]
[]
[]
[]
[]
["Bilan par tiers"]
["Année Bilan Financier","(Tous)"]
["Année Bilan Activité","(Tous)"]
["Année Compte Exploitation","(Tous)"]
["Compte bancaire","1 - Compte Chèque"]
[]
["Montants","Sens"]
["Tiers",1,"Total général"]
["Compte chèque",2350,2350]
["Total général",2350,2350]

{"sheet":"Prévisionnel","index":8,"n_rows":5,"n_cols":7,"rows_kept":5,"cut":false,"hidden":false,"merged":[]}
[{"$f":"Titre&\" \"&AnnéeRéf&\" - Budget prévisionnel\"","v":"Association Mon Assoce  - Budget prévisionnel"},null,{"$f":"SUBTOTAL(3,A3:A6)-1","v":2},{"$f":"SUBTOTAL(9,D3:D5)","v":2350},{"$f":"SUBTOTAL(9,E3:E5)","v":2350}]
[]
["Désignation","Regroupement","Compte","Montant saisi","Montant","Observations","Sens"]
["Adhésions","Adhésions","730 - Adhésions",350,{"$f":"IF(ISNUMBER(D4*G4),D4*G4,\"Classe incorrecte\")","v":350},null,{"$f":"IF(ISNUMBER(VLOOKUP(C4,Comptes,7,FALSE)),VLOOKUP(C4,Comptes,7,FALSE),\"\")","v":1}]
["Subvention","Subventions","740 - Subvention de  fonctionnement, reversement % charges",2000,2000,null,1]

{"sheet":"Synthèses prévisionnel","index":9,"n_rows":62,"n_cols":4,"rows_kept":62,"cut":false,"hidden":false,"merged":[[0,0,0,4],[52,0,52,4]]}
[{"$f":"Titre&\" - Budget prévisionnel par Regroupement\"","v":"Association Mon Assoce - Budget prévisionnel par Regroupement"}]
[]
[]
[]
["Montants"]
[null,1,"(vide)","Total général"]
["Subventions",2000,null,2000]
["Adhésions",350,null,350]
["(vide)"]
["Total général",2350,null,2350]
[]
[]
[]
[]
[]
[]
[]
[]
[]
[]
[]
[]
[]
[]
[]
[]
[]
[]
[]
[]
[]
[]
[]
[]
[]
[]
[]
[]
[]
[]
[]
[]
[]
[]
[]
[]
[]
[]
[]
[]
[]
[]
[{"$f":"Titre&\" - Budget prévisionnel par Compte\"","v":"Association Mon Assoce - Budget prévisionnel par Compte"}]
[]
[]
[]
["Montants"]
[null,1,"(vide)","Total général"]
["740 - Subvention de  fonctionnement, reversement % charges",2000,null,2000]
["(vide)"]
["730 - Adhésions",350,null,350]
["Total général",2350,null,2350]

{"sheet":"Paramètres","index":10,"n_rows":30,"n_cols":3,"rows_kept":30,"cut":false,"hidden":false,"merged":[[2,1,2,2],[3,1,3,2]]}
[{"$f":"Titre&\" \"&AnnéeRéf&\" - Paramètres\"","v":"Association Mon Assoce  - Paramètres"}]
[]
["Titre","Association Mon Assoce"]
["Année de référence"]
[]
[]
["Sens des opérations",-1]
[null,1]
[null,0]
[]
["Modes de règlement","Chèque"]
[null,"Espèces"]
[null,"Virement"]
[null,"Autres (préciser)"]
[]
[]
["Valeurs par défaut"]
["Regroupement :","...",{"$f":"IF(ISNUMBER(MATCH(VD_Regroupement,Liste_Regroupements,0)-1),MATCH(VD_Regroupement,Liste_Regroupements,0)-1,\"\")","v":0}]
["Compte :","600 - Frais d'administration",{"$f":"IF(ISNUMBER(MATCH(VD_Compte,Liste_Comptes,0)-1),MATCH(VD_Compte,Liste_Comptes,0)-1,\"\")","v":0}]
["Classe :","6 - Comptes de charges",{"$f":"IF(ISNUMBER(MATCH(VD_Classe,Liste_Classes,0)-1),MATCH(VD_Classe,Liste_Classes,0)-1,\"\")","v":5}]
["Catégorie :","...",{"$f":"IF(ISNUMBER(MATCH(VD_Catégorie,Liste_Catégories,0)-1),MATCH(VD_Catégorie,Liste_Catégories,0)-1,\"\")","v":0}]
["Compte bancaire :","1 - Compte Chèque",{"$f":"IF(ISNUMBER(MATCH(VD_Compte_Bancaire,Liste_Comptes_Bancaires,0)-1),MATCH(VD_Compte_Bancaire,Liste_Comptes_Bancaires,0)-1,\"\")","v":0}]
[]
[]
[]
["Personnalisation du classeur"]
["Appliquer plein écran ?","oui"]
["Afficher formules ?","non"]
["Afficher feuilles ?","non"]
["Afficher entêtes ?","non"]